bitfinex/quotes_ETHUSD_20241001
["timestamp","ask_amount","ask_price","bid_price","bid_amount"]
[1727786855587,6.11842245,2625.1,2625.0,1.952287]
[1727786855894,6.11840534,2625.1,2625.0,1.952287]
[1727786857825,3.73730729,2625.1,2625.0,1.952287]
[1727786858124,3.18730729,2625.1,2625.0,2.709587]
[1727786858295,1.63212232,2625.1,2625.0,2.709587]
[1727786859323,5.44149232,2625.1,2625.0,2.709587]
[1727786859841,5.44149232,2625.1,2625.0,1.952287]
[1727786859842,5.99149232,2625.1,2625.0,1.952287]
[1727786860120,7.54610672,2625.1,2625.0,1.952287]
[1727786860834,9.92722689,2625.1,2625.0,1.952287]
[1727786861138,7.54610672,2625.1,2625.0,1.952287]
[1727786862091,9.92729901,2625.1,2625.0,1.952287]
[1727786862286,9.92734317,2625.1,2625.0,1.952287]
[1727786862732,7.74522085,2625.1,2625.0,1.952287]
[1727786863035,6.99610496,2625.1,2625.0,1.952287]
[1727786863611,5.44149232,2625.1,2625.0,1.952287]
[1727786864331,6.99620907,2625.1,2625.0,1.952287]
[1727786864506,6.99625046,2625.1,2625.0,1.952287]
[1727786866409,5.44149232,2625.1,2625.0,1.952287]
[1727786869529,6.99672214,2625.1,2625.0,1.952287]
[1727786869911,9.37900403,2625.1,2625.0,1.952287]
[1727786870712,6.99672214,2625.1,2625.0,1.952287]
[1727786871214,9.37900403,2625.1,2625.0,1.952287]
[1727786872610,6.99672214,2625.1,2625.0,1.952287]
[1727786874052,9.37913642,2625.1,2625.0,1.952287]
[1727786874531,2.38241428,2625.2,2625.1,0.7876]
[1727786874740,3.93783053,2625.4,2625.1,0.7876]
[1727786874899,3.80909,2625.3,2625.2,0.30150657]
[1727786875302,3.80923,2625.2,2625.1,0.7876]
[1727786875542,7.42652137,2625.2,2625.1,0.7876]
[1727786877639,5.44135232,2625.2,2625.1,0.7876]
[1727786880203,7.4261311,2625.2,2625.1,0.7876]
[1727786880401,5.44135232,2625.2,2625.1,0.7876]
[1727786881527,7.42586532,2625.2,2625.1,0.7876]
[1727786882345,5.793743,2625.2,2625.1,0.7876]
[1727786885151,5.79317016,2625.2,2625.1,0.7876]
[1727786886443,5.7931267,2625.2,2625.1,0.7876]
[1727786887929,5.79315694,2625.2,2625.1,0.7876]
[1727786889448,3.80923,2625.2,2625.1,0.7876]
[1727786889648,5.79315694,2625.2,2625.1,0.7876]
[1727786889884,1.98392694,2625.2,2625.1,1.0615887]
[1727786890045,1.58724622,2625.2,2625.1,1.0615887]
[1727786890387,1.98392694,2625.3,2625.1,1.0615887]
[1727786890388,1.58724622,2625.3,2625.1,1.0615887]
[1727786890585,1.58724622,2625.3,2625.2,0.30138757]
[1727786891285,3.21936854,2625.3,2625.2,0.30138757]
[1727786891456,7.42514321,2625.3,2625.1,0.7876]
[1727786891789,1.586947,2625.2,2625.1,0.7876]
[1727786892077,3.21906932,2625.3,2625.1,0.7876]
[1727786893097,1.586947,2625.2,2625.1,0.7876]
[1727786893244,3.21906932,2625.3,2625.1,0.7876]
[1727786893449,1.586947,2625.3,2625.1,1.4425457]
[1727786893747,1.19012002,2625.2,2625.1,5.2866157]
[1727786894167,1.19012002,2625.3,2625.2,4.63153]
[1727786894381,1.19012002,2625.3,2625.2,6.26365232]
[1727786894592,0.79340898,2625.6,2625.5,3.80879]
[1727786894805,0.79340898,2625.6,2625.5,0.7794]
[1727786894978,0.79340898,2625.6,2625.5,1.238248]
[1727786895517,0.79340898,2625.7,2625.6,0.8302]
[1727786895699,4.99848002,2625.8,2625.6,0.8302]
[1727786895879,0.79308171,2625.7,2625.6,0.8302]
[1727786896181,1.19012002,2625.8,2625.7,0.8144]
[1727786896182,0.79308171,2625.8,2625.7,0.8144]
[1727786896385,0.79308171,2625.9,2625.7,0.8144]
[1727786898383,0.79308171,2626.0,2625.7,0.8144]
[1727786898690,0.79308171,2626.2,2625.9,0.7612]
[1727786899064,3.80805,2626.1,2625.9,0.7612]
[1727786899296,3.80807,2626.0,2625.9,0.7612]
[1727786899653,0.79308171,2626.1,2625.9,0.7612]
[1727786900480,4.60086171,2626.2,2625.9,0.7612]
[1727786901229,4.60086171,2626.2,2625.9,1.218163]
[1727786902524,3.80778,2626.2,2625.9,1.218163]
[1727786903531,3.8075,2626.4,2626.0,0.7714]
[1727786903828,3.8075,2626.4,2626.0,1.63212232]
[1727786904033,3.8075,2626.4,2626.1,0.7955]
[1727786904348,8.40815171,2626.4,2626.1,0.7955]
[1727786904496,3.80764,2626.3,2626.1,0.7955]
[1727786904696,3.8075,2626.4,2626.1,0.7955]
[1727786905426,4.60044171,2626.5,2626.3,0.7955]
[1727786905634,0.79308171,2626.6,2626.3,0.7955]
[1727786905942,0.79308171,2626.8,2626.4,1.63212232]
[1727786906100,3.80727,2626.6,2626.3,0.7955]
[1727786906301,0.79308171,2626.9,2626.3,0.7955]
[1727786906510,3.80728,2626.6,2626.3,0.7955]
[1727786906712,3.80722,2626.6,2626.3,0.7955]
[1727786906936,3.80722,2626.6,2626.4,0.62352923]
[1727786907348,3.80706,2626.7,2626.4,0.62352923]
[1727786907523,3.80706,2626.7,2626.3,0.7955]
[1727786908535,3.80699,2626.8,2626.3,4.60313]
[1727786908731,0.79308171,2627.0,2626.4,2.46172232]
[1727786909047,7.35,2628.3,2627.0,0.8296]
[1727786909048,3.80563,2627.7,2627.0,0.8296]
[1727786909251,3.8059,2627.5,2627.0,0.8296]
[1727786909437,3.80576,2627.6,2627.0,6.26826232]
[1727786909636,3.80569,2627.7,2627.1,1.00749423]
[1727786909832,3.80576,2627.6,2627.1,1.00749423]
[1727786910536,1.63212232,2627.5,2627.1,1.00749423]
[1727786911342,1.63212232,2627.5,2627.0,4.63614]
[1727786911533,3.80576,2627.6,2627.0,4.63614]
[1727786912158,3.80576,2627.6,2627.1,0.04256494]
[1727786913074,3.80576,2627.6,2627.0,4.63614]
[1727786913277,3.80576,2627.6,2627.1,0.02217126]
[1727786913437,3.80576,2627.6,2627.1,0.5419488]
[1727786913839,3.80568,2627.7,2627.2,0.7506]
[1727786914058,3.53237925,2627.7,2627.2,0.7506]
[1727786914474,7.33799925,2627.7,2627.2,0.7506]
[1727786914782,7.33799925,2627.7,2627.2,1.63354081]
[1727786915669,3.80575,2627.6,2627.2,1.63354081]
[1727786917605,7.61159,2627.6,2627.2,1.63354081]
[1727786917805,3.80575,2627.6,2627.2,1.63354081]
[1727786918685,7.6116,2627.6,2627.2,1.63354081]
[1727786918903,3.80575,2627.6,2627.2,1.63354081]
[1727786919266,7.61159,2627.6,2627.2,1.63354081]
[1727786919467,3.80601,2627.5,2627.2,0.7506]
[1727786919689,3.80575,2627.6,2627.2,0.7506]
[1727786919912,7.61162,2627.6,2627.2,0.7506]
[1727786920098,3.80575,2627.6,2627.2,0.7506]
[1727786921331,3.80575,2627.6,2627.2,1.586968]
[1727786921772,7.61163,2627.6,2627.2,1.586968]
[1727786922088,3.80575,2627.6,2627.2,0.7506]
[1727786922294,3.80558,2627.8,2627.2,0.7506]
[1727786922513,3.80561,2627.7,2627.2,0.7506]
[1727786922677,3.80576,2627.6,2627.2,0.7506]
[1727786923011,3.80576,2627.6,2627.2,1.58696]
[1727786924626,3.80561,2627.7,2627.3,0.79933314]
[1727786924907,3.80561,2627.7,2627.3,0.82699732]
[1727786925907,3.80575,2627.6,2627.3,0.82699732]
[1727786926103,3.80575,2627.6,2627.3,0.7742]
[1727786926310,3.80575,2627.6,2627.3,1.31589]
[1727786927382,3.80558,2627.8,2627.3,1.31589]
[1727786927721,3.8057,2627.7,2627.3,1.31589]
[1727786927891,3.80558,2627.8,2627.4,0.7648]
[1727786928095,3.80576,2627.6,2627.4,0.7648]
[1727786929314,3.53237925,2628.2,2627.4,0.7648]
[1727786929517,3.80518,2628.0,2627.5,3.8585675]
[1727786929683,3.80518,2628.0,2627.6,0.88087548]
[1727786929888,3.80518,2628.0,2627.6,0.8281]
[1727786930224,0.6643,2628.3,2627.6,0.8281]
[1727786930529,3.8045,2628.5,2627.7,0.7531]
[1727786930530,3.80504,2628.1,2627.7,0.7531]
[1727786930681,3.80489,2628.2,2627.9,0.7531]
[1727786932013,3.8047,2628.4,2627.9,4.55841]
[1727786932212,0.6643,2628.7,2628.0,0.8308]
[1727786932213,3.80503,2628.1,2628.0,0.8308]
[1727786932418,3.80503,2628.1,2627.8,0.455878]
[1727786932419,3.80503,2628.1,2627.8,0.8308]
[1727786932928,7.61019,2628.1,2627.8,0.8308]
[1727786933142,3.80523,2628.0,2627.8,0.8308]
[1727786933290,3.80503,2628.1,2627.8,0.8308]
[1727786933789,3.80518,2628.0,2627.8,0.8308]
[1727786934524,5.43446946,2628.2,2627.8,0.8308]
[1727786934686,3.80504,2628.1,2627.8,0.8308]
[1727786935501,3.80504,2628.1,2627.8,1.294453]
[1727786935703,3.80504,2628.1,2627.8,0.8308]
[1727786936040,5.43446946,2628.2,2627.8,0.8308]
[1727786936784,3.80511,2628.1,2627.8,0.8308]
[1727786937410,9.23946946,2628.2,2627.8,0.8308]
[1727786937609,3.80489,2628.2,2627.8,1.294448]
[1727786937942,3.80489,2628.2,2627.8,0.8308]
[1727786938102,3.80489,2628.2,2627.8,0.85881934]
[1727786939150,3.8047,2628.4,2628.0,0.799]
[1727786939928,3.8047,2628.4,2628.0,1.259421]
[1727786941193,3.8047,2628.4,2628.0,5.064581]
[1727786941410,3.8047,2628.4,2628.0,0.799]
[1727786942146,0.6643,2629.2,2628.3,0.8308]
[1727786942310,3.80389,2628.9,2628.5,0.784]
[1727786942637,3.80389,2628.9,2628.5,1.2839126]
[1727786942807,3.80389,2628.9,2628.5,1.24554944]
[1727786943006,9.23695946,2629.1,2628.5,5.04988944]
[1727786943206,3.80372,2629.0,2628.6,0.88543894]
[1727786944521,7.60755,2629.0,2628.6,0.88543894]
[1727786944832,3.80372,2629.0,2628.6,0.88543894]
[1727786945529,3.80372,2629.0,2628.7,0.8277]
[1727786946112,3.80394,2628.9,2628.7,0.8277]
[1727786946837,3.80387,2628.9,2628.7,0.8277]
[1727786947742,3.80361,2629.1,2628.7,0.8277]
[1727786947903,3.80343,2629.2,2628.7,0.8277]
[1727786948412,3.80343,2629.2,2628.8,0.463191]
[1727786949026,1.62957946,2629.1,2628.8,0.463191]
[1727786949536,3.80343,2629.2,2628.8,0.49010778]
[1727786949736,0.6643,2629.4,2628.8,0.49010778]
[1727786949957,5.43273946,2629.4,2628.9,0.7978]
[1727786950098,5.43273946,2629.4,2629.0,0.5064991]
[1727786950298,3.80298,2629.6,2629.1,0.7978]
[1727786950495,1.62957946,2629.6,2629.1,0.7978]
[1727786950749,3.80278,2629.7,2629.2,0.46015]
[1727786951043,3.80292,2629.6,2629.3,0.75]
[1727786952849,3.80304,2629.5,2629.3,0.75]
[1727786953346,3.80288,2629.6,2629.3,0.75]
[1727786953850,3.80288,2629.6,2629.3,1.205358]
[1727786954011,7.60587,2629.6,2629.3,1.205358]
[1727786954212,3.80288,2629.6,2629.3,0.75]
[1727786954549,3.80272,2629.7,2629.3,0.75]
[1727786956560,3.52651117,2629.7,2629.3,0.75]
[1727786956712,3.52651117,2629.7,2628.7,7.41]
[1727786956713,3.80343,2629.2,2629.1,0.7872]
[1727786957046,3.80366,2629.1,2628.9,0.7872]
[1727786957246,3.80372,2629.0,2628.9,0.7872]
[1727786957812,3.80372,2629.0,2628.7,1.5406]
[1727786958940,3.52651117,2629.3,2628.7,1.5406]
[1727786958941,3.80331,2629.3,2628.7,5.34464]
[1727786959129,3.80331,2629.3,2628.8,0.534464]
[1727786959636,3.80331,2629.3,2628.8,4.338454]
[1727786959843,3.80323,2629.4,2628.9,0.8309]
[1727786960158,3.80338,2629.3,2628.9,0.8309]
[1727786960332,3.80348,2629.2,2628.9,0.8309]
[1727786960531,3.80348,2629.2,2628.9,1.3478494]
[1727786960839,3.80348,2629.2,2628.9,0.8309]
[1727786961010,0.6643,2629.6,2628.9,0.8309]
[1727786961211,7.33016117,2629.1,2628.9,0.8309]
[1727786961451,3.80344,2629.2,2628.9,0.8309]
[1727786962163,3.80315,2629.4,2628.9,4.63477]
[1727786962318,3.80315,2629.4,2629.0,0.463477]
[1727786962713,3.52651117,2629.5,2629.0,0.463477]
[1727786963028,3.80321,2629.4,2629.0,0.463477]
[1727786963740,3.8029,2629.6,2629.1,0.07606459]
[1727786963945,4.46698,2629.8,2629.3,0.8308]
[1727786964250,7.32944117,2629.6,2629.3,0.8308]
[1727786964452,3.52651117,2629.6,2629.3,0.8308]
[1727786964666,7.32941117,2629.6,2629.3,0.8308]
[1727786964865,3.80304,2629.5,2629.3,0.8308]
[1727786965773,7.32937117,2629.6,2629.3,0.8308]
[1727786966324,3.80309,2629.5,2629.3,0.8308]
[1727786966838,3.52651117,2629.6,2629.3,0.8308]
[1727786967035,7.32946117,2629.6,2629.3,0.8308]
[1727786967237,11.13244117,2629.6,2629.3,0.8308]
[1727786967838,7.32946117,2629.6,2629.3,0.8308]
[1727786968239,7.32945117,2629.6,2629.3,0.8308]
[1727786968441,3.52651117,2629.8,2629.3,4.63398]
[1727786968655,3.80288,2629.6,2629.4,0.463398]
[1727786968828,3.80288,2629.6,2629.3,0.8308]
[1727786969329,7.32915117,2629.8,2629.3,0.8308]
[1727786969565,3.80285,2629.7,2629.3,0.8308]
[1727786970131,3.80286,2629.6,2629.3,0.8308]
[1727786970331,7.32937117,2629.6,2629.3,1.294223]
[1727786970732,3.80302,2629.5,2629.3,0.8308]
[1727786971063,11.13231117,2629.6,2629.3,0.8308]
[1727786971227,7.32937117,2629.6,2629.3,0.8308]
[1727786971765,3.52651117,2629.6,2629.3,0.8308]
[1727786972177,3.80272,2629.7,2629.3,0.8308]
[1727786972476,3.80272,2629.7,2629.3,1.294222]
[1727786972647,7.99347117,2629.8,2629.3,1.294222]
[1727786972970,3.80286,2629.6,2629.3,1.294222]
[1727786975388,3.80271,2629.7,2629.3,1.294222]
[1727786975679,3.80287,2629.6,2629.3,1.294222]
[1727786975977,3.80287,2629.6,2629.3,0.8308]
[1727786978873,8.11642339,2629.8,2629.3,0.8308]
[1727786979080,3.80273,2629.7,2629.3,0.8308]
[1727786979575,3.80266,2629.8,2629.3,0.8308]
[1727786979576,3.80286,2629.6,2629.3,0.8308]
[1727786979788,3.80286,2629.6,2629.3,1.294213]
[1727786982860,0.78725222,2629.7,2629.4,0.8138]
[1727786983177,4.58991222,2629.8,2629.4,4.61685]
[1727786983361,4.58991222,2629.8,2629.5,0.461685]
[1727786983871,0.78725222,2629.8,2629.5,0.461685]
[1727786984446,4.98350527,2629.9,2629.5,0.461685]
[1727786984447,0.78725222,2629.7,2629.5,0.461685]
[1727786987359,0.78725222,2629.6,2629.5,4.264685]
[1727786987563,0.78725222,2629.6,2629.5,0.461685]
[1727786987762,0.78725222,2629.6,2629.4,4.61688]
[1727786988147,0.78725222,2629.7,2629.4,4.61688]
[1727786988345,0.78725222,2629.6,2629.4,4.61688]
[1727786988696,0.78725222,2629.6,2629.2,3.80337]
[1727786988697,4.31376339,2629.6,2629.2,3.80337]
[1727786988864,4.31376339,2629.6,2628.9,10.41]
[1727786988865,0.78725222,2629.5,2629.1,4.61247]
[1727786989183,0.78725222,2629.5,2629.2,0.841619]
[1727786989184,0.78725222,2629.4,2629.2,0.841619]
[1727786989547,2.41517358,2629.4,2629.2,0.841619]
[1727786989956,0.78725222,2629.4,2629.2,4.644959]
[1727786993063,1.18106527,2629.5,2629.3,3.80329]
[1727786993064,0.78725222,2629.5,2629.3,3.80329]
[1727786993279,1.18106527,2629.6,2629.4,0.8448249]
[1727786993483,0.7952085,2629.5,2629.4,0.8448249]
[1727786993887,0.7952085,2629.5,2629.4,4.6479649]
[1727786994057,0.7952085,2629.5,2629.4,4.55674]
[1727786994261,0.7952085,2629.5,2629.4,4.55526021]
[1727786996267,0.79535363,2629.6,2629.5,3.803]
[1727786996472,1.18106527,2629.7,2629.6,3.80285]
[1727786997086,1.19302741,2629.7,2629.6,3.80285]
[1727786997298,1.19297934,2629.7,2629.5,4.25859]
[1727786997474,1.19297934,2629.6,2629.5,4.25859]
[1727786998344,1.19297934,2629.7,2629.5,4.25859]
[1727786998467,1.19297934,2629.6,2629.5,4.25859]
[1727786999297,1.19297934,2629.7,2629.5,4.25859]
[1727787000363,1.19297934,2629.7,2629.5,4.25857]
[1727787000699,1.19297934,2629.6,2629.5,4.25857]
[1727787003430,1.19297934,2629.6,2629.5,3.80291]
[1727787004801,1.19297934,2629.6,2629.5,4.56881]
[1727787004802,0.79546178,2629.6,2629.5,4.56881]
[1727787005443,0.79546178,2629.8,2629.7,3.80271]
[1727787005730,0.79546178,2629.8,2629.7,4.7290401]
[1727787005890,0.79546178,2629.9,2629.8,3.80257]
[1727787008600,0.79546178,2629.9,2629.7,4.65299872]
[1727787008795,0.79546178,2629.9,2629.7,4.7208705]
[1727787008992,0.79546178,2629.8,2629.6,0.8213]
[1727787009219,0.79545176,2629.7,2629.6,0.8213]
[1727787009428,1.19297934,2629.7,2629.6,0.8213]
[1727787011125,0.79546684,2629.7,2629.6,0.8213]
[1727787011722,1.19297934,2629.7,2629.6,1.67163423]
[1727787011929,1.19297934,2629.8,2629.6,1.67163423]
[1727787012091,0.79547083,2629.7,2629.6,1.67163423]
[1727787012295,0.79547083,2629.7,2629.6,0.8213]
[1727787014697,4.99569934,2629.7,2629.2,4.61633]
[1727787014913,4.99569934,2629.7,2629.2,4.61624]
[1727787014914,0.79541909,2629.4,2629.2,4.61624]
[1727787015130,0.79541909,2629.4,2629.3,3.80329]
[1727787015492,0.79541909,2629.5,2629.3,3.80329]
[1727787015696,0.79541909,2629.4,2629.3,3.80329]
[1727787016038,0.79541909,2629.5,2629.3,3.80329]
[1727787016515,0.79541909,2629.4,2629.3,3.80329]
[1727787019145,0.79549996,2629.5,2629.4,3.80314]
[1727787019344,2.82039695,2629.6,2629.4,3.80314]
[1727787019645,1.19312864,2629.5,2629.4,3.80314]
[1727787020248,2.82039695,2629.6,2629.4,3.80314]
[1727787020452,1.19312864,2629.5,2629.4,3.80314]
[1727787020986,1.19312864,2629.5,2629.2,5.377944]
[1727787021185,0.79552982,2629.4,2629.3,4.3410744]
[1727787021997,0.79552982,2629.4,2629.3,3.80328]
[1727787027911,0.79552982,2629.5,2629.4,3.80314]
[1727787028439,0.79552982,2629.6,2629.5,3.803]
[1727787030472,0.79552982,2629.6,2629.5,4.5921]
[1727787031311,0.79552982,2629.6,2629.5,5.431624]
[1727787032795,0.79552982,2629.7,2629.5,5.431624]
[1727787033709,0.79552982,2629.7,2629.6,3.80285]
[1727787035324,0.79552982,2629.7,2629.6,3.80285]
[1727787035528,1.19312864,2629.8,2629.6,3.80285]
[1727787038226,1.19312864,2629.8,2629.7,3.80271]
[1727787038407,1.19312864,2629.9,2629.7,4.642176]
[1727787038720,1.19312864,2629.8,2629.7,4.642176]
[1727787039845,1.19312864,2629.8,2629.7,0.839466]
[1727787041215,0.79568885,2629.8,2629.7,0.839466]
[1727787041415,1.19312864,2629.9,2629.7,0.839466]
[1727787041741,1.19312864,2629.8,2629.6,3.80274]
[1727787041929,0.79563885,2629.7,2629.6,3.80274]
[1727787042099,0.79563885,2629.7,2629.5,4.5921]
[1727787042342,0.79563885,2629.7,2629.5,3.803]
[1727787042544,0.79563885,2629.6,2629.5,3.803]
[1727787045450,2.42290716,2629.6,2629.3,4.59587]
[1727787045616,2.42290716,2629.4,2629.3,3.80327]
[1727787046919,1.62726831,2629.4,2629.3,3.80327]
[1727787047337,2.42283092,2629.4,2629.3,3.80327]
[1727787047535,2.42283092,2629.4,2629.2,3.80343]
[1727787047751,0.79554286,2629.3,2629.2,3.80343]
[1727787047958,0.79554286,2629.3,2629.1,4.60772]
[1727787047959,0.79551893,2629.3,2629.1,4.60772]
[1727787048132,2.82039695,2629.4,2629.1,4.60772]
[1727787048133,0.79551893,2629.2,2629.1,3.80352]
[1727787048325,2.42278724,2629.2,2629.1,3.80352]
[1727787048623,4.46796,2629.1,2628.6,11.21418]
[1727787048856,4.46796,2629.1,2628.3,3.80462]
[1727787048857,1.62726831,2628.7,2628.3,3.80462]
[1727787049070,1.62726831,2628.5,2628.4,0.53992504]
[1727787049366,1.62726831,2628.5,2628.2,3.80483]
[1727787049567,2.42257179,2628.5,2628.2,3.80483]
[1727787050065,2.42257179,2628.5,2628.3,3.80472]
[1727787050267,2.42257179,2628.5,2628.3,3.80473]
[1727787050629,1.62726831,2628.5,2628.3,3.80473]
[1727787051167,1.62726831,2628.5,2628.3,3.80467]
[1727787051864,1.62726831,2628.5,2628.3,3.88075468]
[1727787052441,1.62726831,2628.5,2628.3,3.88081468]
[1727787052836,1.45960348,2628.8,2628.4,0.8199]
[1727787053071,1.62726831,2628.8,2628.5,7.68480904]
[1727787053245,1.62726831,2628.8,2628.4,0.8199]
[1727787053568,1.62726831,2628.8,2628.4,4.62436]
[1727787053752,1.62726831,2628.8,2628.5,0.07607971]
[1727787055578,1.62726831,2628.8,2628.4,5.467255]
[1727787056133,1.62726831,2628.8,2628.4,1.662795]
[1727787056629,1.62726831,2628.8,2628.5,3.8044]
[1727787056830,1.62726831,2628.8,2628.4,5.467265]
[1727787057071,1.62726831,2628.8,2628.5,0.5467265]
[1727787057447,5.43130831,2628.8,2628.5,0.5467265]
[1727787057651,2.29156831,2628.6,2628.3,3.80473]
[1727787060650,6.09588831,2628.6,2628.2,4.55758]
[1727787060850,2.29156831,2628.6,2628.2,4.55758]
[1727787061059,2.29156831,2628.6,2628.2,5.693838]
[1727787061671,6.09586831,2628.6,2628.2,5.693838]
[1727787062390,2.29156831,2628.6,2628.3,3.80473]
[1727787064988,6.09587831,2628.6,2628.2,1.888958]
[1727787065178,1.62726831,2628.4,2628.0,0.7519]
[1727787065372,1.62726831,2628.4,2628.1,3.80492]
[1727787065687,1.62726831,2628.4,2628.1,3.80496]
[1727787068463,1.62726831,2628.4,2628.1,3.80494]
[1727787070305,2.29156831,2628.2,2627.5,8.1811]
[1727787070456,4.59918348,2628.9,2627.3,4.57728]
[1727787070457,1.62726831,2627.6,2627.3,4.57728]
[1727787070657,1.62726831,2627.4,2627.3,4.57728]
[1727787071371,1.62726831,2627.4,2627.3,3.80618]
[1727787072076,1.62726831,2627.5,2627.3,3.80618]
[1727787072336,1.62726831,2627.5,2627.4,3.80604]
[1727787072598,1.19295523,2628.3,2628.0,3.8051]
[1727787072599,0.6643,2628.3,2628.0,3.8051]
[1727787072752,1.62726831,2628.4,2628.1,3.80488]
[1727787073155,1.62726831,2628.4,2628.2,3.80488]
[1727787073555,0.6643,2628.5,2628.2,3.80488]
[1727787073756,0.6643,2628.5,2628.1,3.80501]
[1727787074557,0.6643,2628.5,2628.1,4.264881]
[1727787074776,0.6643,2628.5,2628.2,3.80485]
[1727787075459,0.6643,2628.5,2628.2,3.80488]
[1727787075657,0.6643,2628.5,2628.1,4.264881]
[1727787075994,0.6643,2628.5,2628.2,3.80488]
[1727787076203,3.80411,2628.8,2628.3,4.64705808]
[1727787076204,0.6643,2628.7,2628.3,4.64705808]
[1727787076354,0.6643,2628.7,2628.3,3.84008198]
[1727787076993,0.6643,2628.7,2628.4,3.80451]
[1727787077168,0.6643,2628.7,2628.4,0.03571619]
[1727787077589,0.6643,2628.7,2628.3,4.63511]
[1727787078975,0.6643,2628.7,2628.4,3.80458]
[1727787079295,0.6643,2628.7,2628.4,3.83987707]
[1727787079635,0.6643,2628.7,2628.4,0.03529707]
[1727787080030,0.6643,2628.7,2628.4,3.83984707]
[1727787080378,0.6643,2628.7,2628.4,0.88280778]
[1727787080913,3.80388,2628.9,2628.5,3.80441]
[1727787081112,4.19397717,2629.0,2628.6,3.83958438]
[1727787081315,4.19397717,2629.0,2628.4,0.84751071]
[1727787081475,7.99771717,2629.0,2628.5,3.80437]
[1727787082416,4.19397717,2629.0,2628.6,3.80429]
[1727787082725,7.99772717,2629.0,2628.5,3.80435]
[1727787082910,7.99772717,2629.0,2628.5,4.648282]
[1727787083382,3.80388,2628.9,2628.5,4.648282]
[1727787084306,3.52967717,2628.8,2628.5,4.648282]
[1727787084826,4.46803,2629.0,2628.5,4.648282]
[1727787085198,3.80387,2628.9,2628.5,4.648282]
[1727787085722,0.6643,2629.0,2628.5,4.648282]
[1727787085723,4.46805,2629.0,2628.5,4.648282]
[1727787086397,4.46805,2629.0,2628.6,3.80429]
[1727787086996,4.46805,2629.0,2628.5,4.648352]
[1727787087725,4.46804,2629.0,2628.5,4.648352]
[1727787087926,4.46804,2629.0,2628.5,0.843932]
[1727787088138,4.46804,2629.0,2628.6,4.2691392]
[1727787089514,5.26334348,2629.0,2628.6,4.2691392]
[1727787089709,5.26334348,2629.0,2628.6,0.4648492]
[1727787089908,4.46804,2629.0,2628.6,0.49168773]
[1727787090449,0.79530348,2629.0,2628.7,0.8214]
[1727787090595,4.46759,2629.3,2629.0,3.80365]
[1727787090596,0.79530348,2629.3,2629.0,3.80365]
[1727787090792,0.79530348,2629.4,2629.0,3.80365]
[1727787091229,4.59854348,2629.4,2628.9,3.80386]
[1727787091432,0.79530348,2629.4,2629.0,3.80369]
[1727787091608,4.59845348,2629.4,2629.0,3.80369]
[1727787092447,0.79530348,2629.3,2629.0,3.80369]
[1727787092620,0.79530348,2629.3,2629.0,4.564445]
[1727787093468,0.79530348,2629.3,2628.8,3.80389]
[1727787093645,0.79530348,2629.3,2628.9,3.80384]
[1727787094132,0.79530348,2629.3,2629.0,3.80371]
[1727787094641,0.79530348,2629.3,2628.8,3.80389]
[1727787094814,0.79530348,2629.3,2629.0,3.80372]
[1727787095017,0.79530348,2629.3,2629.0,3.87978539]
[1727787097145,4.59845348,2629.4,2629.0,3.87978539]
[1727787097510,0.79530348,2629.3,2629.0,3.87978539]
[1727787098242,4.59845348,2629.4,2629.0,3.87978539]
[1727787099440,4.59845348,2629.4,2629.0,4.69440583]
[1727787101625,6.22634218,2629.4,2629.0,4.69440583]
[1727787101953,5.4310387,2629.4,2629.0,4.69440583]
[1727787102256,6.22634218,2629.4,2629.0,4.61834044]
[1727787102423,1.6278887,2629.4,2629.1,4.5996]
[1727787102615,1.45960348,2629.5,2629.2,3.80333]
[1727787102821,0.6643,2629.5,2629.1,4.59959]
[1727787103727,0.6643,2629.5,2629.2,3.80342]
[1727787105619,4.59802348,2629.7,2629.4,3.80313]
[1727787105620,0.6643,2629.7,2629.4,3.80313]
[1727787107424,0.6643,2629.7,2629.3,3.80328]
[1727787107661,0.6643,2629.7,2629.4,3.80314]
[1727787108957,4.46673,2629.9,2629.4,7.60614]
[1727787109263,6.88965218,2630.1,2629.7,3.80268]
[1727787109570,4.46647,2630.1,2629.7,4.266168]
[1727787109728,6.0943587,2630.1,2629.7,4.266168]
[1727787110226,6.0943587,2630.1,2629.7,0.463488]
[1727787110433,9.8965987,2630.1,2629.7,0.463488]
[1727787110635,6.0943587,2630.1,2629.7,0.463488]
[1727787111359,6.0943587,2630.1,2629.8,0.5098518]
[1727787112263,9.8965687,2630.1,2629.8,0.5098518]
[1727787112422,6.0943587,2630.1,2629.8,0.5098518]
[1727787113050,3.8023,2630.0,2629.8,0.5098518]
[1727787113236,1.6278887,2629.9,2629.4,0.7703]
[1727787113455,1.6278887,2629.5,2629.2,7.41]
[1727787113650,1.6278887,2629.5,2629.0,0.7703]
[1727787113651,1.6278887,2629.3,2629.0,0.7703]
[1727787113959,1.6278887,2629.3,2629.0,4.57402]
[1727787114161,1.6278887,2629.3,2629.1,0.837788]
[1727787114527,1.6278887,2629.3,2629.1,4.641358]
[1727787115538,0.6643,2629.4,2629.1,4.641358]
[1727787116533,0.6643,2629.4,2629.1,4.641298]
[1727787116772,0.6643,2629.4,2629.1,4.641288]
[1727787118883,3.52734045,2629.3,2628.8,4.5604]
[1727787119040,0.6643,2629.4,2628.7,3.80414]
[1727787119041,7.99523045,2629.1,2628.7,3.80414]
[1727787119237,4.19164045,2629.1,2628.7,3.80414]
[1727787119440,4.19164045,2629.1,2628.7,5.38163]
[1727787120137,4.19164045,2629.1,2628.8,3.80399]
[1727787121383,4.19164045,2629.1,2628.7,5.38163]
[1727787121546,4.19164045,2629.1,2628.7,3.80414]
[1727787121898,4.19164045,2629.1,2628.5,3.80435]
[1727787121899,8.79059393,2629.1,2628.5,7.60868]
[1727787122081,0.6643,2628.8,2628.4,0.8289]
[1727787122241,0.6643,2628.8,2628.2,8.2409]
[1727787122242,7.33152045,2628.7,2628.2,8.2409]
[1727787122451,3.52734045,2628.7,2628.3,5.009313]
[1727787123256,4.32264393,2628.7,2628.3,3.80473]
[1727787123590,4.32264393,2628.7,2628.3,3.80466]